bitfinex/quotes_SOLUSD_20250904
["timestamp","ask_amount","ask_price","bid_price","bid_amount"]
[1756993131820,7.01041482,207.94,207.9,0.71]
[1756993132123,26.0,207.97,207.86,0.03]
[1756993132124,7.01041482,207.91,207.86,0.03]
[1756993132323,7.01041482,207.89,207.86,0.31432314]
[1756993132524,0.71,207.95,207.87,0.71]
[1756993132952,7.01041482,207.88,207.86,0.03]
[1756993133235,7.01041482,207.87,207.86,0.03]
[1756993134037,5.52005725,207.9,207.86,0.03]
[1756993134240,7.01041482,207.87,207.86,0.03]
[1756993135947,0.71,207.91,207.86,0.03]
[1756993136327,7.01041482,207.88,207.86,0.03]
[1756993136655,7.01041482,207.89,207.86,0.03]
[1756993136864,7.01041482,207.88,207.86,0.03]
[1756993137933,26.0,207.92,207.86,0.03]
[1756993138139,7.01041482,207.88,207.86,0.03]
[1756993139935,7.01041482,207.87,207.86,0.03]
[1756993140346,26.0,207.93,207.86,0.74]
[1756993140347,0.71,207.92,207.86,0.74]
[1756993140561,7.01041482,207.87,207.86,0.03]
[1756993140949,7.01041482,207.88,207.86,0.03]
[1756993141158,26.71,207.93,207.86,1.02432314]
[1756993141357,26.71,207.93,207.87,0.71]
[1756993141358,7.01041482,207.91,207.87,0.71]
[1756993141766,26.0,207.93,207.87,0.71]
[1756993142278,26.71,207.93,207.86,0.31432314]
[1756993142466,7.01041482,207.88,207.86,0.31432314]
[1756993142872,0.71,207.92,207.86,0.31432314]
[1756993143056,7.01041482,207.89,207.86,0.31432314]
[1756993143253,7.01041482,207.9,207.87,5.52069899]
[1756993143450,7.01041482,207.9,207.86,5.12504366]
[1756993143667,7.01041482,207.89,207.86,5.12504366]
[1756993144355,0.71,207.88,207.86,0.03]
[1756993144549,7.01041482,207.87,207.86,0.03]
[1756993144755,7.72041482,207.87,207.86,0.03]
[1756993147072,12.53111381,207.87,207.86,0.03]
[1756993148463,0.71,207.87,207.86,0.03]
[1756993148661,12.53111381,207.87,207.86,0.03]
[1756993149961,7.72041482,207.87,207.86,0.03]
[1756993150161,12.53111381,207.87,207.86,0.03]
[1756993150358,0.71,207.92,207.86,0.74]
[1756993150556,39.42,207.91,207.86,0.74]
[1756993150756,0.71,207.9,207.86,0.03]
[1756993150962,7.01041482,207.87,207.86,0.03]
[1756993151352,0.71,207.89,207.86,0.03]
[1756993151777,7.01041482,207.87,207.86,0.03]
[1756993151979,7.01041482,207.88,207.86,0.74]
[1756993152177,0.06,207.95,207.87,7.01041482]
[1756993152347,7.01041482,207.93,207.88,0.99432314]
[1756993152554,33.01041482,207.94,207.89,0.71]
[1756993152854,7.01041482,207.94,207.9,0.71]
[1756993153070,7.01041482,207.93,207.9,0.71]
[1756993153269,7.01041482,207.92,207.86,0.74]
[1756993153474,7.01041482,207.89,207.86,5.83514402]
[1756993153647,7.01041482,207.89,207.86,5.12514402]
[1756993153850,7.01041482,207.9,207.87,0.71]
[1756993154174,7.01041482,207.9,207.86,5.12514402]
[1756993154487,26.0,207.93,207.87,0.71]
[1756993154488,0.06,207.89,207.87,0.71]
[1756993154678,0.06,207.89,207.86,0.03]
[1756993154982,7.01041482,207.87,207.86,0.03]
[1756993156158,12.52111381,207.87,207.86,0.03]
[1756993157089,38.52111381,207.87,207.86,0.03]
[1756993159761,78.00111381,207.87,207.86,0.03]
[1756993162171,26.0,207.85,207.84,0.1]
[1756993162577,33.71041482,207.85,207.84,0.1]
[1756993162985,40.72082964,207.85,207.84,0.1]
[1756993163585,85.09199153,207.85,207.84,0.1]
[1756993165491,82.20970245,207.85,207.84,0.1]
[1756993165972,87.02086434,207.85,207.84,0.1]
[1756993166169,1.92887281,207.85,207.84,0.1]
[1756993166395,48.43928763,207.85,207.84,0.1]
[1756993166563,53.25044952,207.85,207.84,0.1]
[1756993166895,60.96086434,207.85,207.84,0.1]
[1756993167473,49.74646739,207.85,207.83,0.03]
[1756993167673,3.50643269,207.84,207.83,0.03]
[1756993167894,19.54355682,207.84,207.82,0.03]
[1756993168077,40.03216345,207.82,207.81,0.03]
[1756993168294,79.61216345,207.82,207.81,0.03]
[1756993168483,28.80643269,207.82,207.81,0.03]
[1756993169002,68.36643269,207.82,207.81,0.03]
[1756993169200,28.80643269,207.82,207.81,0.03]
[1756993169375,42.38643269,207.82,207.81,0.74]
[1756993169899,39.58,207.82,207.81,0.74]
[1756993170196,2.80643269,207.82,207.81,0.74]
[1756993170385,4.81073113,207.87,207.81,5.55207676]
[1756993170575,4.81073113,207.87,207.82,0.71]
[1756993170576,2.80643269,207.85,207.82,0.71]
[1756993170909,2.80643269,207.83,207.82,0.71]
[1756993171196,2.80643269,207.83,207.81,0.03]
[1756993171372,2.80643269,207.82,207.81,0.03]
[1756993171977,44.41142068,207.84,207.81,0.03]
[1756993172187,2.80643269,207.82,207.81,0.03]
[1756993172375,39.6,207.84,207.81,0.03]
[1756993172573,2.80643269,207.83,207.82,0.71]
[1756993172773,2.80643269,207.83,207.81,0.03]
[1756993173078,2.80643269,207.82,207.81,0.03]
[1756993173771,44.41144125,207.84,207.81,0.03]
[1756993173972,2.80643269,207.82,207.81,0.74]
[1756993174172,2.80643269,207.82,207.81,0.03]
[1756993175804,3.50643269,207.82,207.81,0.03]
[1756993176105,34.3182891,207.82,207.81,0.03]
[1756993176275,45.54401986,207.82,207.81,0.03]
[1756993176802,26.0,207.8,207.79,0.03]
[1756993177099,39.8,207.8,207.79,0.03]
[1756993177306,53.83216345,207.8,207.79,0.03]
[1756993177476,39.8,207.8,207.79,0.03]
[1756993177679,53.83216345,207.8,207.79,0.03]
[1756993177874,6.74091527,207.82,207.79,0.03]
[1756993178195,12.0274234,207.86,207.79,0.74]
[1756993178196,39.8,207.83,207.79,0.74]
[1756993178402,39.8,207.83,207.8,0.71]
[1756993178580,2.80643269,207.81,207.8,0.71]
[1756993178776,26.0,207.8,207.79,0.03]
[1756993178997,54.53216345,207.8,207.79,0.03]
[1756993179197,53.83216345,207.8,207.79,0.03]
[1756993179974,26.0,207.8,207.79,0.74]
[1756993180174,28.80643269,207.8,207.79,0.03]
[1756993180400,40.03216345,207.8,207.79,0.03]
[1756993180786,40.73216345,207.8,207.79,0.03]
[1756993181093,40.03216345,207.8,207.79,0.03]
[1756993181485,34.77160886,207.8,207.79,0.03]
[1756993181999,39.58392839,207.8,207.79,0.03]
[1756993182384,40.30392839,207.8,207.79,0.03]
[1756993182777,39.58392839,207.8,207.79,0.03]
[1756993183299,79.44392839,207.8,207.79,0.03]
[1756993183908,74.63160886,207.8,207.79,0.03]
[1756993184211,79.44392839,207.8,207.79,0.03]
[1756993185509,80.16392839,207.8,207.79,0.03]
[1756993185815,80.16392839,207.8,207.78,0.03]
[1756993185996,9.91835556,207.79,207.78,0.03]
[1756993186995,4.81255113,207.79,207.78,0.03]
[1756993187206,50.94778662,207.79,207.78,0.03]
[1756993187393,51.66778662,207.79,207.78,0.03]
[1756993188015,26.0,207.77,207.67,0.7]
[1756993188320,4.38580443,207.7,207.67,0.7]
[1756993188809,39.82,207.73,207.68,0.7]
[1756993189009,4.38580443,207.69,207.64,0.28432314]
[1756993189317,44.20580443,207.73,207.6,13.59559401]
[1756993189498,4.38580443,207.68,207.61,0.7]
[1756993189698,4.38580443,207.68,207.63,4.38580443]
[1756993189899,4.38580443,207.68,207.64,0.98432314]
[1756993190094,4.38580443,207.68,207.65,0.7]
[1756993190301,39.82,207.71,207.65,0.7]
[1756993191215,44.63445211,207.71,207.65,0.7]
[1756993191392,4.38580443,207.68,207.65,0.7]
[1756993191894,4.38580443,207.69,207.65,0.7]
[1756993192091,4.38580443,207.7,207.66,4.8155639]
[1756993192298,4.38580443,207.7,207.67,0.7]
[1756993192730,4.38580443,207.71,207.67,0.98432314]
[1756993193019,4.38580443,207.7,207.68,0.7]
[1756993193218,4.38580443,207.71,207.68,0.7]
[1756993193420,48.96136833,207.75,207.68,0.7]
[1756993193607,4.38580443,207.71,207.68,0.7]
[1756993194007,4.38580443,207.71,207.69,0.7]
[1756993194204,4.38580443,207.71,207.7,0.7]
[1756993194697,26.0,207.72,207.7,0.7]
[1756993194897,39.76,207.75,207.7,0.7]
[1756993194898,4.38580443,207.73,207.7,0.7]
[1756993195116,4.38580443,207.71,207.67,4.815121]
[1756993195416,26.0,207.74,207.7,0.7]
[1756993195925,26.0,207.74,207.71,0.7]
[1756993196216,26.0,207.74,207.72,0.7]
[1756993196445,4.38580443,207.73,207.72,0.7]
[1756993196920,26.0,207.74,207.7,0.7]
[1756993197122,26.0,207.74,207.71,0.7]
[1756993197426,4.38580443,207.73,207.72,0.7]
[1756993197729,26.0,207.74,207.73,0.7]
[1756993197929,26.0,207.74,207.68,0.98432314]
[1756993198100,4.38580443,207.69,207.68,0.98432314]
[1756993198304,4.38580443,207.69,207.68,0.7]
[1756993199218,4.38580443,207.69,207.64,0.7]
[1756993199421,26.0,207.7,207.65,0.7]
[1756993199894,4.38580443,207.69,207.65,0.7]
[1756993200099,4.38580443,207.67,207.66,0.7]
[1756993200301,4.38580443,207.67,207.63,13.62559401]
[1756993200302,4.38580443,207.67,207.63,0.03]
[1756993200503,26.0,207.66,207.63,0.03]
[1756993200714,4.38580443,207.64,207.63,0.73]
[1756993200910,26.0,207.66,207.63,0.03]
[1756993201416,4.38580443,207.64,207.63,0.73]
[1756993201730,26.0,207.67,207.63,0.03]
[1756993202030,26.0,207.66,207.63,0.03]
[1756993202535,26.0,207.65,207.63,0.03]
[1756993203210,4.38580443,207.64,207.63,0.03]
[1756993203733,26.0,207.66,207.63,0.73]
[1756993203941,42.38,207.71,207.64,0.7]
[1756993204113,4.38580443,207.66,207.63,0.03]
[1756993204320,30.81516939,207.68,207.63,0.03]
[1756993204512,30.38580443,207.64,207.63,0.03]
[1756993205026,26.0,207.64,207.63,0.03]
[1756993205215,31.10580443,207.64,207.63,0.03]
[1756993205626,26.72,207.64,207.63,0.03]
[1756993205828,26.0,207.64,207.63,0.03]
[1756993206021,30.38580443,207.64,207.63,0.03]
[1756993206223,26.0,207.64,207.63,0.03]
[1756993206417,30.38580443,207.64,207.63,0.03]
[1756993206937,4.38580443,207.7,207.63,0.03]
[1756993206938,0.72,207.68,207.63,0.03]
[1756993207127,26.0,207.67,207.63,0.03]
[1756993207323,15.52521122,207.74,207.63,0.03]
[1756993207533,4.38580443,207.64,207.63,0.03]
[1756993207842,4.38580443,207.68,207.63,1.01432314]
[1756993208028,4.38580443,207.68,207.63,0.03]
[1756993208029,0.72,207.68,207.63,0.03]
[1756993208232,30.38580443,207.64,207.63,0.03]
[1756993208534,26.0,207.64,207.63,0.03]
[1756993208728,26.0,207.65,207.63,0.03]
[1756993209445,4.38580443,207.64,207.63,0.03]
[1756993210233,9.92183217,207.64,207.63,0.03]
[1756993210736,54.13228752,207.64,207.63,0.03]
[1756993211034,30.38580443,207.64,207.63,0.03]
[1756993211345,31.10580443,207.64,207.63,0.03]
[1756993211534,8.77160886,207.61,207.6,0.03]
[1756993211717,53.47160886,207.61,207.6,0.03]
[1756993211915,54.19160886,207.61,207.6,0.03]
[1756993212241,54.19160886,207.61,207.52,0.7]
[1756993212242,26.0,207.58,207.52,0.67]
[1756993212420,49.51673907,207.61,207.52,0.67]
[1756993212622,26.0,207.58,207.52,0.67]
[1756993212922,45.06,207.62,207.53,4.67012757]
[1756993213128,30.38580443,207.59,207.54,0.67]
[1756993213425,30.38580443,207.59,207.51,0.67]
[1756993213426,4.38580443,207.56,207.51,0.67]
[1756993213636,4.81650098,207.62,207.51,0.67]
[1756993213637,4.38580443,207.53,207.51,0.67]
[1756993213818,26.0,207.56,207.52,0.67]
[1756993214136,26.0,207.57,207.47,4.81997397]
[1756993214137,71.06,207.59,207.53,0.67]
[1756993214515,45.72510116,207.66,207.54,4.67012757]
[1756993214516,45.06,207.63,207.54,4.67012757]
[1756993214738,4.38580443,207.58,207.55,0.67]
[1756993215050,4.38580443,207.58,207.56,0.67]
[1756993215258,4.38580443,207.59,207.57,0.67]
[1756993215422,4.38580443,207.59,207.53,4.81855256]
[1756993215738,4.38580443,207.57,207.54,0.95432314]
[1756993215925,4.38580443,207.56,207.54,0.28432314]
[1756993216129,26.0,207.57,207.53,0.67]
[1756993216343,4.38580443,207.61,207.56,0.28432314]
[1756993216545,4.38580443,207.61,207.57,0.67]
[1756993216723,45.02,207.63,207.58,0.67]
[1756993216918,26.0,207.63,207.59,0.67]
[1756993217152,20.09046795,207.66,207.62,4.38580443]
[1756993217316,4.38580443,207.64,207.58,0.67]
[1756993217519,20.09046795,207.66,207.63,17.98139844]
[1756993217721,13.87991715,207.71,207.66,0.28432314]
[1756993217919,0.06,207.76,207.7,18.26572158]
[1756993218151,0.06,207.76,207.75,9.4836053]
[1756993218328,0.06,207.79,207.76,0.28432314]
[1756993218529,0.06,207.79,207.76,0.67]
[1756993218962,4.44580443,207.79,207.76,0.67]
[1756993219251,4.44580443,207.79,207.75,13.87991715]
[1756993219440,4.38580443,207.77,207.71,5.34012757]
[1756993219643,0.06,207.79,207.72,0.67]
[1756993219943,0.06,207.79,207.73,0.28432314]
[1756993220245,4.38580443,207.74,207.69,0.95432314]
[1756993220546,4.38580443,207.72,207.69,0.95432314]
[1756993220927,26.0,207.75,207.69,0.95432314]
[1756993221133,26.66,207.78,207.69,5.34012757]
[1756993221336,0.06,207.79,207.67,18.41090956]
[1756993221337,26.06,207.79,207.73,0.28432314]
[1756993221525,11.34310012,207.76,207.7,12.01310012]
[1756993221726,0.66,207.77,207.68,13.87991715]
[1756993221925,11.34310012,207.72,207.68,13.87991715]
[1756993222120,0.06,207.79,207.69,0.67]
[1756993222349,0.06,207.79,207.7,4.81463649]
[1756993222554,37.34310012,207.77,207.72,11.34310012]
[1756993222846,11.34310012,207.76,207.72,13.54991715]
[1756993223064,0.66,207.77,207.7,16.15773661]
[1756993223232,11.34310012,207.74,207.7,4.81463649]
[1756993223428,0.66,207.76,207.7,4.81463649]
[1756993223429,11.34310012,207.73,207.7,4.81463649]
[1756993223632,11.34310012,207.74,207.7,4.81463649]
[1756993223939,0.06,207.79,207.66,11.34310012]
[1756993223940,11.34310012,207.72,207.66,11.34310012]
[1756993224141,0.66,207.73,207.61,26.0]
[1756993224345,11.34310012,207.69,207.59,70.86]
[1756993224543,11.34310012,207.69,207.64,11.34310012]
[1756993224751,0.66,207.76,207.68,11.34310012]
[1756993224949,11.34310012,207.74,207.68,11.34310012]
[1756993225125,11.34310012,207.74,207.67,0.67]
[1756993225126,26.0,207.69,207.51,4.81901198]
[1756993225445,11.34310012,207.57,207.52,0.67]
[1756993225638,11.34310012,207.58,207.53,0.67]
[1756993225850,26.0,207.65,207.53,12.01310012]
[1756993226029,11.34310012,207.6,207.54,0.67]
[1756993226227,0.66,207.7,207.58,11.34310012]
[1756993226464,26.0,207.69,207.59,0.67]
[1756993226957,26.0,207.71,207.6,11.34310012]
[1756993227262,13.87991715,207.77,207.61,12.29742326]
[1756993227554,12.09081447,207.8,207.64,0.28432314]
[1756993227555,0.72,207.79,207.64,0.28432314]
[1756993227734,11.34310012,207.73,207.67,11.34310012]
[1756993227935,0.72,207.79,207.68,12.01310012]
[1756993228142,11.34310012,207.74,207.69,0.67]
[1756993228342,11.34310012,207.74,207.7,5.48463649]
[1756993228546,0.72,207.79,207.71,0.67]
[1756993228750,11.34310012,207.74,207.71,0.67]
[1756993229136,26.0,207.76,207.71,0.67]
[1756993229332,5.53256041,207.79,207.71,0.67]
[1756993229563,5.53256041,207.79,207.66,12.03853812]
[1756993229564,11.34310012,207.72,207.65,0.67]
[1756993229761,11.34310012,207.66,207.61,0.67]
[1756993230052,11.34310012,207.66,207.58,13.59559401]
[1756993230053,26.0,207.69,207.58,0.67]
[1756993230263,0.66,207.71,207.6,4.81695568]
[1756993230436,30.81435745,207.72,207.61,0.67]
[1756993230770,11.34310012,207.66,207.61,0.95432314]
[1756993231064,11.34310012,207.62,207.6,4.81695568]
[1756993231363,11.34310012,207.61,207.58,4.81741978]
[1756993231567,16.84978976,207.72,207.57,0.7]
[1756993231568,11.34310012,207.59,207.57,0.7]
[1756993232067,11.34310012,207.6,207.58,0.67]
[1756993232243,11.34310012,207.6,207.58,5.48723969]
[1756993232440,26.66,207.66,207.58,5.48723969]
[1756993232742,0.66,207.66,207.58,5.48723969]
[1756993232954,11.34310012,207.61,207.58,5.48723969]
[1756993233550,11.34310012,207.59,207.57,0.03]
[1756993233866,11.34310012,207.58,207.57,0.03]
[1756993235067,34.45,207.7,207.57,0.03]
[1756993235362,26.0,207.63,207.57,0.03]
[1756993235572,11.34310012,207.6,207.57,0.7]
[1756993235941,0.66,207.69,207.58,0.67]
[1756993236150,0.66,207.72,207.61,11.34310012]
[1756993236365,11.34310012,207.66,207.62,0.67]
[1756993236549,4.81385016,207.74,207.63,0.67]
[1756993236745,11.34310012,207.64,207.59,0.67]
[1756993236945,5.47385016,207.74,207.61,11.34310012]
[1756993237168,5.47385016,207.74,207.62,12.01310012]
[1756993237364,26.0,207.71,207.63,11.34310012]
[1756993237566,11.34310012,207.68,207.63,11.34310012]
[1756993237865,26.0,207.71,207.63,11.34310012]
[1756993238062,5.47385016,207.74,207.65,4.81579581]
[1756993238262,11.34310012,207.68,207.65,4.81579581]
[1756993238464,11.34310012,207.66,207.59,13.59559401]
[1756993238658,26.66,207.71,207.6,0.67]
[1756993238858,11.34310012,207.65,207.6,0.67]
[1756993239062,11.34310012,207.64,207.6,0.67]
[1756993239254,11.34310012,207.65,207.61,0.67]
[1756993239668,0.66,207.69,207.62,0.67]
[1756993239872,11.34310012,207.64,207.59,4.81718772]
[1756993240057,11.34310012,207.62,207.57,0.03]
[1756993240374,11.34310012,207.58,207.57,0.03]
[1756993240879,0.66,207.65,207.57,0.7]
[1756993241076,11.34310012,207.61,207.57,0.7]
[1756993241281,26.66,207.66,207.57,0.7]
[1756993241449,11.34310012,207.61,207.58,0.67]
[1756993241770,11.34310012,207.62,207.58,0.67]
[1756993241972,0.66,207.66,207.59,0.67]
[1756993242178,11.34310012,207.62,207.6,4.81695568]
[1756993242479,26.0,207.66,207.6,0.69]
[1756993242779,11.34310012,207.61,207.57,0.03]
[1756993242950,11.34310012,207.58,207.57,0.03]
[1756993243486,0.7,207.61,207.57,0.03]
[1756993243652,7.72855529,207.58,207.57,0.03]
[1756993244484,0.7,207.58,207.57,0.03]
[1756993244776,33.72855529,207.58,207.57,0.03]
[1756993244982,26.0,207.54,207.45,0.69]
[1756993245381,7.02855529,207.5,207.45,0.69]
[1756993245584,7.02855529,207.48,207.46,0.69]
[1756993245899,7.02855529,207.48,207.43,0.69]
[1756993246103,0.7,207.53,207.44,0.69]
[1756993246271,7.02855529,207.46,207.4,14.28559401]
[1756993246478,7.02855529,207.46,207.41,56.02992359]
[1756993246790,7.02855529,207.46,207.42,0.69]
[1756993246966,26.7,207.52,207.43,0.69]
[1756993246967,7.02855529,207.47,207.43,0.69]
[1756993247170,0.7,207.52,207.43,0.69]
[1756993247396,7.02855529,207.48,207.43,0.69]
[1756993247597,7.02855529,207.48,207.44,0.69]
[1756993247773,7.02855529,207.48,207.39,44.93]
[1756993247774,7.02855529,207.45,207.39,44.93]
[1756993247972,7.02855529,207.44,207.39,44.93]
[1756993248207,7.02855529,207.45,207.4,0.69]
[1756993248501,7.02855529,207.47,207.41,5.5113683]
[1756993248684,7.02855529,207.46,207.41,5.5113683]
[1756993248882,0.7,207.5,207.41,5.5113683]
[1756993249081,0.7,207.5,207.41,12.53992359]
[1756993249280,7.02855529,207.46,207.41,24.59334435]
[1756993249502,26.7,207.5,207.42,0.69]
[1756993249689,0.7,207.5,207.45,0.03]
[1756993249998,13.87991715,207.57,207.46,0.69]
[1756993249999,0.7,207.54,207.46,0.69]
[1756993250213,26.0,207.51,207.45,0.03]
[1756993250502,0.7,207.5,207.45,0.03]
[1756993251175,7.02855529,207.49,207.45,0.72]
[1756993251374,26.0,207.52,207.45,0.72]
[1756993251901,26.0,207.53,207.45,7.74855529]
[1756993252273,7.02855529,207.57,207.53,4.81858044]
[1756993252689,7.02855529,207.56,207.53,4.81858044]
[1756993252889,26.0,207.58,207.53,4.81858044]
[1756993253099,7.02855529,207.57,207.53,4.81858044]
[1756993253302,0.7,207.62,207.53,12.53713573]
[1756993253511,7.02855529,207.58,207.53,12.53713573]
[1756993253698,7.02855529,207.56,207.53,4.81858044]
[1756993254004,0.7,207.6,207.53,4.81858044]
[1756993254185,0.7,207.63,207.53,12.53713573]
[1756993254384,7.02855529,207.58,207.53,12.53713573]
[1756993254598,7.02855529,207.58,207.54,0.69]
[1756993254798,7.02855529,207.59,207.53,11.84713573]
[1756993254989,26.0,207.6,207.53,11.84713573]
[1756993255200,7.02855529,207.58,207.53,11.84713573]
[1756993255394,26.0,207.6,207.53,12.53713573]
[1756993255608,7.02855529,207.58,207.53,4.81858044]
[1756993255784,7.02855529,207.56,207.53,4.81858044]
[1756993256310,7.02855529,207.57,207.53,4.81858044]
[1756993256490,0.7,207.6,207.53,4.81858044]
[1756993256689,7.02855529,207.57,207.53,4.81858044]
[1756993257110,0.7,207.64,207.54,0.69]
[1756993257409,7.02855529,207.61,207.54,0.69]
[1756993257778,7.02855529,207.62,207.57,7.02855529]
[1756993258010,7.02855529,207.63,207.58,7.71855529]
[1756993258189,7.02855529,207.63,207.58,0.69]
[1756993258390,7.02855529,207.62,207.58,0.69]
[1756993258608,0.7,207.64,207.56,44.02]
[1756993258786,0.7,207.63,207.56,44.02]
[1756993258984,7.02855529,207.57,207.56,44.02]
[1756993259280,7.02855529,207.58,207.55,4.81811611]
[1756993259518,7.02855529,207.56,207.52,4.81881264]
[1756993259684,7.02855529,207.55,207.52,4.81881264]
[1756993260107,0.7,207.61,207.52,4.81881264]
[1756993260311,0.7,207.61,207.53,7.71855529]
[1756993260615,0.7,207.61,207.47,14.28559401]
[1756993260616,7.02855529,207.54,207.47,14.28559401]
[1756993260910,7.02855529,207.51,207.47,58.18559401]
[1756993261095,7.02855529,207.52,207.48,0.69]
[1756993261298,7.02855529,207.53,207.49,0.69]
[1756993261499,33.72855529,207.6,207.5,0.69]
[1756993261698,7.02855529,207.52,207.48,48.67974166]
[1756993262015,26.0,207.56,207.49,0.69]
[1756993262228,0.7,207.55,207.45,13.62559401]
[1756993262390,7.02855529,207.5,207.46,43.84]
[1756993262587,7.02855529,207.5,207.47,0.69]
[1756993262811,0.7,207.55,207.48,0.69]
[1756993263012,0.7,207.55,207.46,4.82020477]
[1756993263214,0.7,207.54,207.45,0.03]
[1756993263409,26.0,207.53,207.45,0.03]
[1756993263803,7.02855529,207.47,207.45,0.03]
[1756993264021,5.51886696,207.52,207.45,0.03]
[1756993264022,7.02855529,207.46,207.45,0.03]
[1756993264221,7.02855529,207.47,207.45,0.03]
[1756993264393,26.7,207.52,207.45,0.03]
[1756993264394,7.02855529,207.46,207.45,0.03]
[1756993264910,7.72855529,207.46,207.45,0.03]
[1756993265726,26.0,207.46,207.45,0.03]
[1756993265896,0.7,207.51,207.45,0.03]
[1756993266216,26.0,207.5,207.45,0.03]
[1756993266396,7.02855529,207.46,207.38,23.62558882]
[1756993266599,7.02855529,207.45,207.39,7.02855529]
[1756993266805,26.0,207.48,207.4,7.02855529]
[1756993267006,7.02855529,207.45,207.38,16.59703353]
[1756993267314,0.7,207.47,207.38,23.62558882]
[1756993267506,0.7,207.47,207.38,16.59703353]
[1756993267712,0.7,207.47,207.39,7.02855529]
[1756993268025,7.02855529,207.45,207.38,16.59703353]
[1756993268318,7.02855529,207.47,207.42,7.02855529]
[1756993268506,0.7,207.5,207.43,0.69]
[1756993268507,7.02855529,207.48,207.43,0.69]
[1756993268719,0.7,207.47,207.45,0.03]
[1756993269213,0.7,207.46,207.45,0.03]
[1756993269592,7.72855529,207.46,207.45,0.03]
[1756993270025,7.02855529,207.46,207.45,0.03]
[1756993270316,7.72855529,207.46,207.45,0.03]
[1756993271416,0.7,207.46,207.45,0.03]
[1756993271603,7.72855529,207.46,207.45,0.03]
[1756993271799,7.02855529,207.46,207.45,0.03]
[1756993272395,0.69,207.48,207.45,0.03]
[1756993272624,7.02855529,207.48,207.45,0.03]
[1756993272916,7.02855529,207.49,207.46,0.69]
[1756993273121,7.02855529,207.47,207.45,0.03]
[1756993273330,7.02855529,207.46,207.45,0.03]
[1756993273823,26.0,207.53,207.45,0.03]
[1756993274009,7.02855529,207.48,207.45,0.03]
[1756993274392,7.02855529,207.46,207.45,0.03]
[1756993274894,7.71855529,207.46,207.45,0.03]
[1756993275532,12.53876159,207.46,207.45,0.03]
[1756993275997,38.53876159,207.46,207.45,0.03]
[1756993276420,12.53876159,207.46,207.45,0.03]
[1756993276597,5.5102063,207.46,207.45,0.03]
[1756993276797,26.69,207.46,207.45,0.03]
[1756993277141,38.53876159,207.46,207.45,0.03]
[1756993277437,26.69,207.46,207.45,0.03]
[1756993277725,38.53876159,207.46,207.45,0.03]
[1756993278310,7.71855529,207.46,207.45,0.03]
[1756993278507,12.53876159,207.46,207.45,0.03]
[1756993278710,7.71855529,207.46,207.45,0.03]
[1756993278928,12.53876159,207.46,207.45,0.03]
[1756993279795,7.02855529,207.46,207.45,0.03]
[1756993279996,33.02855529,207.46,207.45,0.03]
[1756993280198,0.69,207.51,207.45,0.03]
[1756993280399,7.02855529,207.46,207.45,0.03]
[1756993280625,12.53876159,207.46,207.45,0.03]
[1756993280799,7.71855529,207.46,207.45,0.03]
[1756993281204,0.69,207.46,207.45,0.03]
[1756993281512,7.71855529,207.46,207.45,0.03]
[1756993281714,7.02855529,207.46,207.45,0.03]
[1756993282225,26.0,207.49,207.45,0.03]
[1756993282427,0.69,207.55,207.45,0.72]
[1756993282728,7.02855529,207.5,207.46,4.8202063]
[1756993282919,7.02855529,207.49,207.46,4.8202063]
[1756993283426,7.02855529,207.49,207.45,0.03]